bitfinex-derivatives/quotes_SOLF0:USTF0_20260108
["timestamp","ask_amount","ask_price","bid_price","bid_amount"]
[1767857511113,0.30521116,135.56,135.46,87.22]
[1767857512404,0.30521116,135.56,135.45,5.09330468]
[1767857512605,0.30521116,135.56,135.46,87.22]
[1767857512606,0.30521116,135.55,135.46,87.22]
[1767857513706,6.6491,135.53,135.46,87.22]
[1767857514910,6.95361116,135.55,135.46,93.8724]
[1767857515305,6.95361116,135.55,135.47,6.6519]
[1767857516018,6.6484,135.55,135.47,6.6519]
[1767857516212,6.95271116,135.57,135.48,6.6514]
[1767857517411,6.95271116,135.57,135.48,93.8714]
[1767857518221,6.95271116,135.57,135.49,6.6509]
[1767857519419,0.30521116,135.57,135.5,6.6504]
[1767857520124,6.95241116,135.57,135.5,6.6504]
[1767857520707,6.95171116,135.59,135.51,6.6499]
[1767857520917,0.4174,135.6,135.51,6.6499]
[1767857521316,0.4174,135.6,135.51,108.53880468]
[1767857522019,0.4174,135.6,135.52,87.22]
[1767857522216,0.4174,135.6,135.53,6.6487]
[1767857523321,0.4174,135.6,135.53,93.8687]
[1767857524222,0.4174,135.6,135.53,87.22]
[1767857524519,0.4174,135.6,135.54,5.09330468]
[1767857524713,6.95898313,135.65,135.54,5.09330468]
[1767857524921,6.95898313,135.65,135.54,108.51290468]
[1767857525315,6.95898313,135.65,135.55,87.22]
[1767857525521,6.95898313,135.65,135.55,93.8677]
[1767857528225,6.95898313,135.65,135.56,6.6475]
[1767857528626,6.95898313,135.65,135.56,9.90025279]
[1767857530128,6.95898313,135.65,135.56,97.10025279]
[1767857530321,5.59870435,135.64,135.56,9.90025279]
[1767857530525,6.95898313,135.65,135.56,97.10025279]
[1767857530731,5.59762407,135.64,135.56,97.10025279]
[1767857530925,6.95898313,135.65,135.56,97.10025279]
[1767857531121,5.59762407,135.64,135.56,97.10025279]
[1767857531425,6.95898313,135.65,135.56,97.10025279]
[1767857531630,5.60040588,135.64,135.56,97.10025279]
[1767857531826,6.95898313,135.65,135.56,97.10025279]
[1767857532024,5.60040588,135.64,135.56,97.10025279]
[1767857532324,6.95898313,135.65,135.56,97.10025279]
[1767857532518,5.60392744,135.64,135.56,97.10025279]
[1767857532715,6.95898313,135.65,135.56,97.10025279]
[1767857532920,5.60393161,135.64,135.56,97.10025279]
[1767857533126,6.95898313,135.65,135.56,97.10025279]
[1767857533331,5.60510022,135.64,135.56,97.10025279]
[1767857533534,6.95898313,135.65,135.56,97.10025279]
[1767857533730,5.60422766,135.64,135.56,97.10025279]
[1767857534029,6.95898313,135.65,135.56,97.10025279]
[1767857534227,5.60422766,135.64,135.56,97.10025279]
[1767857534425,6.95898313,135.65,135.56,97.10025279]
[1767857534623,5.60312902,135.64,135.56,97.10025279]
[1767857534829,6.95898313,135.65,135.56,97.10025279]
[1767857535134,6.96422303,135.67,135.58,3.25275279]
[1767857535428,5.60318751,135.66,135.58,3.25275279]
[1767857535634,6.6428,135.66,135.58,3.25275279]
[1767857536132,6.6432,135.65,135.59,87.2]
[1767857537127,6.96432303,135.67,135.59,87.2]
[1767857537723,6.96432303,135.67,135.58,3.25275279]
[1767857537926,6.96432303,135.67,135.58,90.43275279]
[1767857538331,6.96432303,135.67,135.58,9.89925279]
[1767857538531,6.96432303,135.67,135.58,97.07925279]
[1767857538922,12.56077089,135.66,135.58,90.43275279]
[1767857539229,0.32172303,135.64,135.55,3.25275279]
[1767857539431,0.32172303,135.64,135.55,90.43275279]
[1767857540425,0.32172303,135.64,135.56,6.6475]
[1767857541931,6.96542303,135.64,135.56,6.6475]
[1767857544031,0.32172303,135.64,135.57,6.647]
[1767857545335,0.32172303,135.63,135.55,93.8276]
[1767857546038,0.32172303,135.63,135.56,6.6475]
[1767857547628,6.96542303,135.64,135.56,6.6475]
[1767857548031,3.25275279,135.65,135.54,6.6481]
[1767857548032,0.32172303,135.61,135.54,6.6481]
[1767857548230,0.32172303,135.61,135.51,3.25275279]
[1767857548426,0.32172303,135.61,135.52,87.18]
[1767857548730,0.32172303,135.58,135.48,113.57172543]
[1767857548931,3.57447582,135.63,135.52,106.68835279]
[1767857549127,5.60002128,135.62,135.52,106.68835279]
[1767857549336,0.32172303,135.63,135.54,3.25275279]
[1767857549739,9.89615279,135.65,135.56,3.25275279]
[1767857549938,0.32172303,135.65,135.58,3.25275279]
[1767857550133,3.57447582,135.68,135.58,3.25275279]
[1767857550336,5.91929845,135.67,135.58,3.25275279]
[1767857550639,0.32172303,135.67,135.58,3.25275279]
[1767857551044,0.32172303,135.67,135.59,87.18]
[1767857552247,0.32172303,135.67,135.59,93.8258]
[1767857557441,6.96402303,135.67,135.59,93.8258]
[1767857558339,6.96402303,135.67,135.59,6.6458]
[1767857558544,6.96402303,135.67,135.59,93.8058]
[1767857558943,6.96402303,135.67,135.59,87.16]
[1767857560349,0.31655183,135.64,135.55,3.25275279]
[1767857560647,0.31655183,135.66,135.57,3.25275279]
[1767857560845,5.60810013,135.65,135.57,3.25275279]
[1767857561043,0.31655183,135.66,135.57,3.25275279]
[1767857561342,5.60724586,135.65,135.59,3.25275279]
[1767857561547,10.21110462,135.68,135.59,9.89845279]
[1767857561743,0.31655183,135.71,135.61,3.25275279]
[1767857561949,5.60894541,135.7,135.61,3.25275279]
[1767857562146,0.31655183,135.71,135.61,3.25275279]
[1767857562147,5.60894541,135.69,135.61,3.25275279]
[1767857562346,5.60894541,135.68,135.61,90.41275279]
[1767857562551,0.31655183,135.7,135.61,90.41275279]
[1767857562749,5.61091352,135.69,135.61,90.41275279]
[1767857563050,5.61091352,135.68,135.61,90.41275279]
[1767857563251,0.31655183,135.7,135.61,90.41275279]
[1767857563450,5.61418369,135.69,135.61,90.41275279]
[1767857563654,5.61418369,135.68,135.62,6.6444]
[1767857563958,5.61353021,135.67,135.62,6.6444]
[1767857564144,6.95755183,135.7,135.62,6.6444]
[1767857564346,5.61749704,135.69,135.62,6.6444]
[1767857564546,5.61749704,135.68,135.62,6.6444]
[1767857564746,5.61749704,135.67,135.62,6.6444]
[1767857564951,6.95755183,135.7,135.62,6.6444]
[1767857565152,5.6010177,135.69,135.62,6.6444]
[1767857565353,5.6010177,135.68,135.62,6.6444]
[1767857565552,5.6010177,135.67,135.62,6.6444]
[1767857565751,6.95755183,135.7,135.62,6.6444]
[1767857565948,0.31655183,135.67,135.59,87.16]
[1767857566154,5.60032027,135.66,135.59,87.16]
[1767857566351,6.6414,135.69,135.61,6.645]
[1767857566654,5.6018509,135.68,135.62,3.25275279]
[1767857566845,5.6018509,135.67,135.62,3.25275279]
[1767857567046,0.31655183,135.7,135.62,3.25275279]
[1767857567245,5.60142108,135.69,135.62,3.25275279]
[1767857567545,5.60142108,135.68,135.62,3.25275279]
[1767857567745,5.60142108,135.67,135.62,90.41275279]
[1767857567953,0.31655183,135.7,135.62,90.41275279]
[1767857568148,5.60226929,135.69,135.62,90.41275279]
[1767857568343,5.60226929,135.68,135.62,87.16]
[1767857568549,5.60226929,135.67,135.62,97.05715279]
[1767857568749,0.31655183,135.7,135.62,97.05715279]
[1767857568954,5.60307454,135.69,135.62,97.05715279]
[1767857569154,5.60307454,135.68,135.62,97.05715279]
[1767857569450,5.60307454,135.67,135.62,97.05715279]
[1767857569652,6.95735183,135.7,135.62,97.05715279]
[1767857569859,5.60336926,135.69,135.62,97.05715279]
[1767857570160,5.60336926,135.68,135.62,97.05715279]
[1767857570364,5.60336926,135.67,135.62,97.05715279]
[1767857570659,6.95735183,135.7,135.62,97.05715279]
[1767857570859,5.60283357,135.69,135.62,97.05715279]
[1767857571059,5.60283357,135.68,135.62,97.05715279]
[1767857571261,5.60283357,135.67,135.62,97.05715279]
[1767857571568,6.95735183,135.7,135.62,97.05715279]
[1767857571751,5.60235675,135.69,135.62,97.05715279]
[1767857571952,5.60235675,135.68,135.62,97.05715279]
[1767857572159,5.60235675,135.67,135.62,97.05715279]
[1767857572364,0.31655183,135.7,135.63,6.6441]
[1767857572561,5.60191093,135.69,135.63,6.6441]
[1767857572764,5.60191093,135.68,135.63,6.6441]
[1767857573063,6.95665183,135.72,135.64,6.6436]
[1767857573356,0.31655183,135.74,135.64,3.25275279]
[1767857573559,0.31655183,135.74,135.65,87.16]
[1767857574362,0.31655183,135.73,135.65,87.16]
[1767857575658,6.95585183,135.73,135.65,93.8031]
[1767857576160,6.6385,135.75,135.67,6.642]
[1767857576362,0.31655183,135.76,135.66,90.39275279]
[1767857576952,6.95445183,135.76,135.68,6.6415]
[1767857577763,0.31655183,135.76,135.69,6.6411]
[1767857577964,0.31655183,135.76,135.68,3.25275279]
[1767857578165,0.31655183,135.76,135.7,6.6407]
[1767857578866,0.31655183,135.76,135.68,6.6414]
[1767857579071,0.31655183,135.74,135.64,10.10682543]
[1767857579271,0.31655183,135.72,135.64,90.39275279]
[1767857579961,0.31655183,135.72,135.64,3.25275279]
[1767857581066,103.2502,135.77,135.68,3.25275279]
[1767857581067,0.31655183,135.77,135.68,3.25275279]
[1767857581366,0.31655183,135.8,135.71,3.25275279]
[1767857581665,0.31655183,135.79,135.7,87.14]
[1767857582060,0.31655183,135.79,135.69,3.25275279]
[1767857582255,0.31655183,135.79,135.69,90.39275279]
[1767857583165,6.6369,135.78,135.69,97.03385279]
[1767857584464,6.6374,135.77,135.69,90.37275279]
[1767857585863,0.30911513,135.78,135.69,90.37275279]
[1767857586064,0.30911513,135.78,135.71,3.25275279]
[1767857586772,0.30911513,135.78,135.69,3.25275279]
[1767857586975,0.30911513,135.78,135.69,87.12]
[1767857587569,6.94601513,135.78,135.69,93.761]
[1767857587867,0.30911513,135.8,135.7,3.25275279]
[1767857588073,0.30911513,135.8,135.7,90.37275279]
[1767857588567,0.30911513,135.8,135.7,87.12]
[1767857588876,0.30911513,135.8,135.69,5.07134474]
[1767857589081,0.30911513,135.8,135.7,87.12]
[1767857589277,6.94531513,135.8,135.71,6.6399]
[1767857589775,0.30911513,135.79,135.71,6.6399]
[1767857591381,0.30911513,135.79,135.72,6.6396]
[1767857591774,6.94551513,135.79,135.7,87.12]
[1767857591970,0.32405645,135.78,135.7,93.7603]
[1767857592178,0.32405645,135.78,135.7,6.6403]
[1767857592383,0.32405645,135.78,135.69,87.1]
[1767857592882,6.96095645,135.78,135.69,93.7411]
[1767857593187,0.32405645,135.8,135.69,93.7411]
[1767857593483,5.48733409,135.79,135.69,93.7411]
[1767857593688,0.32405645,135.8,135.69,93.7411]
[1767857593893,5.81343724,135.79,135.69,93.7411]
[1767857594077,0.32405645,135.79,135.69,93.7411]
[1767857594495,6.6369,135.78,135.69,93.7411]
[1767857594792,6.96095645,135.78,135.69,93.7411]
[1767857595286,6.96095645,135.78,135.69,6.6411]
[1767857595487,6.96095645,135.78,135.69,93.7411]
[1767857595688,6.96095645,135.78,135.69,6.6411]
[1767857595990,6.96095645,135.78,135.7,6.6406]
[1767857597184,6.6362,135.8,135.71,6.6401]
[1767857597487,5.74977509,135.79,135.69,87.1]
[1767857597696,0.32405645,135.79,135.69,87.1]
[1767857597992,0.32405645,135.79,135.7,6.6403]
[1767857598489,0.32405645,135.78,135.7,6.6403]
[1767857598693,0.32405645,135.78,135.69,87.1]
[1767857599681,0.32405645,135.78,135.7,6.6407]
[1767857599881,6.6364,135.79,135.7,6.6407]
[1767857600082,6.95975645,135.81,135.7,103.299]
[1767857600283,5.42686702,135.8,135.71,103.2895]
[1767857600491,0.32405645,135.81,135.7,130.56034474]
[1767857600691,0.32405645,135.8,135.72,6.6393]
[1767857601695,5.07134474,135.83,135.7,6.6404]
[1767857601696,0.32405645,135.79,135.7,6.6404]
[1767857602083,0.32405645,135.76,135.67,27.26134474]
[1767857602392,0.32405645,135.76,135.68,6.6412]
[1767857603194,0.32405645,135.76,135.69,6.6411]
[1767857604190,0.32405645,135.76,135.7,6.6407]
[1767857604581,0.32405645,135.76,135.68,87.08]
[1767857605686,0.32405645,135.76,135.69,6.6409]
[1767857606290,0.32405645,135.76,135.66,103.3266]
[1767857606291,0.32405645,135.75,135.66,103.3266]
[1767857607098,0.32405645,135.75,135.67,87.08]
[1767857607403,0.32405645,135.77,135.69,6.6412]
[1767857607902,6.96145645,135.77,135.69,6.6412]
[1767857609503,6.6379,135.76,135.67,93.7217]
[1767857609708,0.32405645,135.75,135.67,87.08]
[1767857610203,0.32405645,135.77,135.67,87.08]
[1767857611608,6.96175645,135.77,135.69,6.6411]
[1767857613297,0.33148799,135.79,135.69,103.3016]
[1767857613498,0.33148799,135.82,135.7,108.37194474]
[1767857613811,12.0816298,135.81,135.71,87.1]
[1767857614001,5.4462298,135.8,135.71,87.1]
[1767857614204,0.33148799,135.84,135.73,125.4647]
[1767857614404,0.33148799,135.84,135.77,6.6372]
[1767857615011,0.33148799,135.84,135.75,6.6381]
[1767857615712,6.96588799,135.83,135.75,6.6381]
[1767857615913,0.33148799,135.82,135.75,6.6381]
[1767857616218,0.33148799,135.82,135.73,6.6389]
[1767857617003,0.33148799,135.79,135.71,6.64]
[1767857617205,0.33148799,135.79,135.68,87.08]
[1767857618415,0.33148799,135.77,135.68,93.7213]
[1767857618814,0.33148799,135.77,135.69,6.641]
[1767857621312,6.96888799,135.77,135.67,6.85407264]
[1767857621518,6.96888799,135.77,135.66,115.25281738]
[1767857621703,0.33148799,135.76,135.67,87.08]
[1767857622612,0.33148799,135.74,135.65,6.85407264]
[1767857622910,0.33148799,135.74,135.64,87.08]
[1767857623111,0.33148799,135.73,135.64,87.08]
[1767857624813,6.97088799,135.73,135.64,93.7235]
[1767857626310,6.97088799,135.73,135.65,6.6431]
[1767857627311,6.97008799,135.75,135.67,6.6421]
[1767857628114,0.33148799,135.73,135.63,6.85407264]
[1767857628318,0.33148799,135.73,135.64,87.1]
[1767857629004,0.33148799,135.73,135.63,87.1]
[1767857630015,0.33148799,135.73,135.64,87.1]
[1767857630624,0.33148799,135.72,135.62,6.6442]
[1767857631115,6.97168799,135.72,135.63,6.644]
[1767857631311,0.33148799,135.72,135.63,6.644]
[1767857632619,6.6403,135.71,135.63,6.644]
[1767857632925,0.33148799,135.71,135.61,100.59897264]
[1767857633216,0.33148799,135.71,135.61,93.7449]
[1767857633622,6.97248799,135.7,135.61,93.7449]
[1767857634119,6.97248799,135.7,135.61,6.6449]
[1767857636822,6.97268799,135.69,135.61,6.6449]
[1767857638031,6.97268799,135.69,135.62,6.6445]
[1767857638626,0.33148799,135.69,135.62,6.6445]
[1767857640725,6.6408,135.7,135.63,6.6441]
[1767857640931,0.33148799,135.71,135.63,6.6441]
[1767857642430,6.6395,135.73,135.63,5.07134474]
[1767857642731,0.32863809,135.74,135.64,87.12]
[1767857643029,6.96743809,135.74,135.65,87.12]
[1767857643922,0.32863809,135.74,135.67,6.6421]
[1767857644620,6.6386,135.75,135.67,6.6421]
[1767857645028,6.94653747,135.75,135.67,6.6421]
[1767857650834,6.94563747,135.77,135.68,3.24800577]
[1767857651226,6.94563747,135.77,135.69,6.6411]
[1767857654626,0.30793747,135.75,135.67,97.00990577]
[1767857654938,0.30793747,135.75,135.65,3.24800577]
[1767857654939,0.30793747,135.73,135.65,3.24800577]
[1767857655228,0.30793747,135.72,135.64,6.6432]
[1767857656628,6.94773747,135.72,135.64,6.6432]
[1767857658540,0.30793747,135.71,135.64,6.6432]
[1767857658939,0.30793747,135.7,135.63,3.24963908]
[1767857659434,6.6408,135.7,135.62,6.6442]
[1767857659637,0.30793747,135.69,135.62,6.6442]
[1767857660128,0.30793747,135.68,135.61,3.24963908]
[1767857660639,0.30793747,135.68,135.61,9.89473908]
[1767857661841,0.30793747,135.67,135.59,6.6457]
[1767857662027,0.30793747,135.65,135.56,10.10524282]
[1767857662527,0.30793747,135.65,135.56,97.22524282]
[1767857662727,0.30793747,135.65,135.56,103.87244282]
[1767857662930,0.30793747,135.65,135.56,97.22524282]
[1767857663241,0.30793747,135.65,135.56,90.36963908]
[1767857663740,0.30793747,135.65,135.57,6.6469]
[1767857664532,0.30793747,135.64,135.57,6.6469]
[1767857675251,3.55430463,135.66,135.58,6.6465]
[1767857675448,3.24963908,135.68,135.58,3.24963908]
[1767857675651,3.55430463,135.68,135.58,90.40963908]
[1767857676147,0.30466555,135.68,135.58,90.40963908]
[1767857676657,0.30466555,135.68,135.6,6.6454]
[1767857677250,3.24963908,135.7,135.6,3.24963908]
[1767857677251,3.55430463,135.7,135.6,3.24963908]
[1767857678151,0.30466555,135.69,135.62,6.6445]
[1767857678647,0.30466555,135.69,135.59,90.40963908]
[1767857679557,0.30466555,135.68,135.6,6.6453]
[1767857680162,0.30466555,135.67,135.6,6.6453]
[1767857681664,6.94696555,135.67,135.6,6.6453]
[1767857681866,0.30466555,135.66,135.6,6.6453]
[1767857682368,0.30466555,135.66,135.58,93.8065]
[1767857683358,0.30466555,135.66,135.58,87.16]
[1767857683564,0.30466555,135.65,135.57,3.24963908]
[1767857683861,0.30466555,135.65,135.56,93.8071]
[1767857684066,6.94796555,135.65,135.56,93.8071]
[1767857684868,6.6438,135.64,135.56,93.8071]
[1767857685166,6.6438,135.64,135.56,87.16]
[1767857687271,0.30466555,135.65,135.56,87.16]
[1767857688075,0.30466555,135.7,135.6,3.24963908]
[1767857688270,106.83590463,135.73,135.62,3.24963908]
[1767857688466,5.69318187,135.72,135.62,3.24963908]
[1767857688778,0.30466555,135.72,135.64,3.24963908]
[1767857691473,0.31494253,135.71,135.62,97.05393908]
[1767857691872,6.64,135.72,135.62,97.05393908]
[1767857692372,6.95494253,135.72,135.62,97.05393908]
[1767857693675,6.6404,135.71,135.62,97.05393908]
[1767857694873,6.95534253,135.71,135.62,97.05393908]
[1767857695576,0.31494253,135.71,135.63,6.644]
[1767857696471,106.52363908,135.74,135.6,103.3727]
[1767857696472,0.31494253,135.69,135.6,3.24963908]
[1767857696867,0.31494253,135.69,135.59,87.14]
[1767857697075,0.31494253,135.69,135.59,90.38963908]
[1767857697574,6.95624253,135.69,135.6,6.6455]
[1767857697773,0.31494253,135.67,135.57,3.24963908]
[1767857697973,0.31494253,135.67,135.57,90.38963908]
[1767857699777,6.6428,135.66,135.58,6.6463]
[1767857699976,0.31494253,135.67,135.58,6.6463]
[1767857700371,5.40904575,135.66,135.58,6.6463]
[1767857700571,0.31494253,135.67,135.58,6.6463]
[1767857700771,6.95714253,135.67,135.59,6.646]
[1767857700976,0.31494253,135.7,135.59,3.24963908]
[1767857701279,12.05022178,135.69,135.61,6.645]
[1767857701477,87.45494253,135.72,135.61,3.24963908]
[1767857701783,5.4089729,135.71,135.63,3.24963908]
[1767857701970,5.4089729,135.7,135.63,3.24963908]
[1767857702171,0.31494253,135.72,135.63,3.24963908]
[1767857702375,12.04948657,135.71,135.62,90.38963908]
[1767857702680,5.40888657,135.7,135.62,3.24963908]
[1767857702881,6.6406,135.71,135.62,90.40963908]
[1767857703080,5.40884157,135.7,135.62,90.40963908]
[1767857703275,5.40963651,135.69,135.63,6.6441]
[1767857703483,0.31494253,135.72,135.63,6.6441]
[1767857703679,5.409561,135.71,135.63,6.6441]
[1767857703889,5.409561,135.7,135.63,6.6441]
[1767857704081,0.31494253,135.72,135.63,6.6441]
[1767857704383,5.40919411,135.71,135.64,6.6436]
[1767857704577,5.40919411,135.7,135.64,6.6436]
[1767857704775,0.31494253,135.72,135.64,6.6436]
[1767857704981,5.40955375,135.71,135.64,6.6436]
[1767857705184,5.40955375,135.7,135.64,6.6436]
[1767857705483,0.31494253,135.72,135.64,6.6436]
[1767857705678,5.40920358,135.71,135.64,6.6436]
[1767857705878,5.40920358,135.7,135.64,6.6436]
[1767857706077,0.31494253,135.72,135.64,6.6436]
[1767857706281,5.40920098,135.71,135.64,6.6436]
[1767857706596,5.40920098,135.7,135.64,6.6436]
[1767857706780,0.31494253,135.72,135.64,6.6436]
[1767857706976,5.40886263,135.71,135.64,6.6436]
[1767857707282,5.40886263,135.7,135.64,6.6436]
[1767857707481,0.31494253,135.72,135.64,6.6436]
[1767857707681,5.40838264,135.71,135.64,6.6436]
[1767857707884,5.40838264,135.7,135.64,6.6436]
[1767857708184,0.31494253,135.72,135.64,6.6436]
[1767857708483,5.40809342,135.71,135.64,6.6436]
[1767857708676,5.40809342,135.7,135.64,6.6436]
[1767857708876,0.31494253,135.72,135.64,6.6436]
[1767857709184,5.40761656,135.71,135.64,6.6436]
[1767857709386,5.40761656,135.7,135.64,6.6436]
[1767857709680,5.40761656,135.7,135.63,3.24963908]
[1767857709681,0.31494253,135.72,135.65,6.643]
[1767857709874,0.31401265,135.74,135.65,3.24963908]
[1767857710076,5.40608501,135.73,135.65,3.24963908]
[1767857710387,0.31401265,135.74,135.65,3.24963908]
[1767857710687,5.40511172,135.73,135.64,103.3458]
[1767857710985,0.31401265,135.74,135.64,103.3458]
[1767857711285,5.40516216,135.73,135.64,103.3458]
[1767857711482,0.31401265,135.74,135.64,103.3458]
[1767857711680,5.40442414,135.73,135.67,6.642]
[1767857711881,0.31401265,135.74,135.67,6.642]
[1767857712084,5.40442414,135.73,135.67,6.642]
[1767857712278,0.31401265,135.74,135.67,6.642]
[1767857712591,0.31572114,135.72,135.62,87.14]
[1767857712785,5.71956857,135.71,135.61,110.22090374]
[1767857713085,0.31572114,135.69,135.59,93.99560374]
[1767857713387,0.31572114,135.69,135.59,87.14]
[1767857713987,0.31572114,135.69,135.62,6.6446]
[1767857715382,0.31572114,135.68,135.58,11.9315204]
[1767857715688,0.31572114,135.68,135.59,87.14]
[1767857716684,6.95742114,135.68,135.6,6.6455]
[1767857718188,6.95802114,135.67,135.58,93.7862]
[1767857718987,6.95802114,135.67,135.59,6.646]
[1767857719385,6.95802114,135.67,135.58,87.14]
[1767857720391,6.95842114,135.66,135.58,87.14]
[1767857720995,6.6432,135.65,135.57,6.6467]
[1767857721187,6.6432,135.65,135.57,87.14]
[1767857722287,6.6432,135.65,135.57,93.787]
[1767857724299,6.95892114,135.65,135.57,6.647]
[1767857724499,0.31572114,135.63,135.55,6.6477]
[1767857724888,0.31572114,135.63,135.54,93.99560374]
[1767857725090,6.6437,135.64,135.54,93.99560374]
[1767857725794,6.95942114,135.64,135.54,93.99560374]
[1767857726196,6.96002114,135.63,135.54,93.7881]
[1767857726499,0.31572114,135.62,135.54,87.14]
[1767857726798,0.31572114,135.61,135.54,87.14]
[1767857726996,0.31572114,135.61,135.53,6.6487]
[1767857727696,6.96092114,135.61,135.53,6.6487]
[1767857727895,0.31572114,135.64,135.52,190.5935]
[1767857728298,0.31572114,135.64,135.52,197.44910374]
[1767857729199,0.31572114,135.64,135.56,6.6475]
[1767857729393,6.6435,135.65,135.54,103.4201]
[1767857729594,0.31572114,135.66,135.55,190.5741]
[1767857730593,6.95842114,135.66,135.56,103.407]
[1767857730801,0.31572114,135.66,135.56,103.407]
[1767857731708,0.31572114,135.66,135.59,6.646]
[1767857736308,0.31572114,135.66,135.58,87.16]
[1767857737107,6.6423,135.67,135.58,87.16]
[1767857737507,6.6416,135.69,135.57,103.399]
[1767857737804,0.30153956,135.7,135.59,5.07591666]
[1767857738010,0.30153956,135.72,135.62,6.6445]
[1767857738404,0.30153956,135.72,135.63,87.16]
[1767857738709,0.30153956,135.72,135.63,93.8041]
[1767857739409,0.30153956,135.74,135.64,87.16]
[1767857740199,6.6385,135.75,135.65,5.07591666]
[1767857741099,6.6385,135.75,135.61,103.3652]
[1767857741100,0.30153956,135.74,135.63,87.16]
[1767857742411,0.30153956,135.73,135.63,93.8038]
[1767857746210,0.30153956,135.73,135.63,87.16]
[1767857746211,6.6394,135.73,135.63,87.16]
[1767857746410,0.30153956,135.72,135.63,87.16]
[1767857747514,0.30153956,135.71,135.62,6.6446]
[1767857748105,0.30153956,135.7,135.61,87.14]
[1767857749296,0.30153956,135.7,135.62,6.6445]
[1767857749502,0.30153956,135.7,135.61,87.14]
[1767857750002,0.30153956,135.7,135.63,6.6441]
[1767857751208,0.30153956,135.7,135.61,93.7848]
[1767857752213,0.30153956,135.7,135.62,6.6446]
[1767857752412,6.6398,135.72,135.62,6.6446]
[1767857752613,6.6398,135.72,135.61,87.14]
[1767857752614,0.30153956,135.73,135.61,217.73191666]
[1767857752804,0.30153956,135.73,135.61,224.5875204]
[1767857753508,0.30153956,135.73,135.62,87.14]
[1767857753701,0.30153956,135.73,135.64,6.6436]
[1767857753910,6.94083956,135.73,135.64,6.6436]
[1767857754109,0.30153956,135.72,135.62,6.6443]
[1767857754912,0.30153956,135.72,135.63,6.6441]
[1767857755604,0.30153956,135.71,135.61,87.14]
[1767857757717,6.94183956,135.71,135.62,6.6443]
[1767857757918,6.94183956,135.71,135.61,87.14]
[1767857758416,6.94183956,135.71,135.62,87.14]
[1767857759620,6.94183956,135.71,135.63,6.644]
[1767857760522,6.6408,135.7,135.61,93.7847]
[1767857761323,6.6408,135.7,135.62,6.6446]
[1767857761814,6.6414,135.69,135.61,87.14]
[1767857762123,0.32899581,135.69,135.58,87.14]
[1767857762826,0.32899581,135.69,135.59,6.646]
[1767857763323,6.97109581,135.68,135.59,6.646]
[1767857763508,0.32899581,135.68,135.59,6.646]
[1767857764523,5.07591666,135.7,135.55,28.96953873]
[1767857764524,0.32899581,135.67,135.55,28.96953873]
[1767857764821,0.32899581,135.66,135.56,87.14]
[1767857765620,0.32899581,135.64,135.56,93.7872]
[1767857766617,0.32899581,135.64,135.56,87.14]
[1767857767429,0.32899581,135.64,135.56,93.7871]
[1767857768529,6.97299581,135.64,135.56,6.6471]
[1767857769331,6.97299581,135.64,135.54,6.6483]
[1767857769928,0.32899581,135.63,135.54,6.6483]
[1767857771522,6.97189581,135.66,135.53,190.5663]
[1767857771831,0.32899581,135.65,135.53,190.5663]
[1767857772235,0.32899581,135.64,135.54,6.6482]
[1767857772531,0.32899581,135.64,135.54,9.90193832]
[1767857773330,6.6443,135.63,135.54,3.25373832]
[1767857774834,0.33151838,135.61,135.53,87.14]
[1767857775134,103.3265,135.67,135.53,87.14]
[1767857775135,0.33151838,135.69,135.58,3.25373832]
[1767857775333,0.33151838,135.69,135.59,3.25373832]
[1767857775634,0.33151838,135.68,135.58,3.25373832]
[1767857776024,0.33151838,135.66,135.58,3.25373832]
[1767857776227,0.33151838,135.66,135.56,90.41373832]
[1767857776423,6.6429,135.66,135.56,90.41373832]
[1767857776624,0.33151838,135.65,135.56,90.41373832]
[1767857777135,0.33151838,135.64,135.56,87.16]
[1767857777338,0.33151838,135.64,135.54,9.90213832]
[1767857777529,0.33151838,135.64,135.54,97.06213832]
[1767857778032,0.33151838,135.69,135.6,3.25373832]
[1767857778440,0.33151838,135.69,135.59,3.25373832]
[1767857779428,3.25373832,135.71,135.61,3.25373832]
[1767857779635,0.33151838,135.72,135.61,3.25373832]
[1767857779837,0.33151838,135.71,135.61,3.25373832]
[1767857780539,0.33151838,135.71,135.61,9.89853832]
[1767857781832,0.33151838,135.73,135.63,3.25373832]
[1767857782230,0.33151838,135.73,135.63,103.3533]
[1767857782427,0.33151838,135.73,135.65,3.25373832]
[1767857783026,6.97121838,135.72,135.63,6.6439]